bitfinex-derivatives/quotes_BNBF0:USTF0_20250603
["timestamp","ask_amount","ask_price","bid_price","bid_amount"]
[1748940881648,1.058,665.39,665.25,1.49945069]
[1748940883344,1.058,665.39,665.27,1.49945069]
[1748940888753,1.215,665.4,665.27,1.49945069]
[1748940889549,1.215,665.4,664.74,0.30086951]
[1748940889550,1.215,665.4,665.28,1.49945069]
[1748940891248,1.215,665.4,665.34,1.49945069]
[1748940891455,1.215,665.4,665.3,1.49945069]
[1748940891953,1.215,665.4,665.31,1.49945069]
[1748940894557,1.215,665.4,665.32,1.49945069]
[1748940896557,1.215,665.4,665.33,1.49945069]
[1748940898356,1.215,665.4,665.34,1.49945069]
[1748940898760,1.215,665.4,665.35,1.49945069]
[1748940899259,1.215,665.4,665.32,1.49945069]
[1748940899460,1.215,665.4,665.31,1.49945069]
[1748940899659,1.215,665.4,665.32,1.49945069]
[1748940899856,1.215,665.4,665.34,1.49945069]
[1748940900263,1.215,665.4,665.24,1.49945069]
[1748940900561,1.215,665.4,665.25,1.49945069]
[1748940901358,1.215,665.4,665.26,1.49945069]
[1748940902663,1.215,665.4,665.27,1.49945069]
[1748940903860,1.215,665.4,665.28,1.49945069]
[1748940904364,1.215,665.4,665.27,1.49945069]
[1748940904561,1.215,665.4,665.28,1.49945069]
[1748940906061,1.215,665.4,665.1,2.24939683]
[1748940906062,1.215,665.4,665.22,1.49945069]
[1748940907766,1.421,665.53,665.23,1.49945069]
[1748940909562,1.421,665.53,665.24,1.49945069]
[1748940910162,1.421,665.53,665.03,2.24939683]
[1748940910163,1.421,665.53,665.27,1.49945069]
[1748940910765,1.421,665.53,665.28,1.49945069]
[1748940911562,1.127,665.52,665.28,1.49945069]
[1748940911764,1.127,665.52,665.29,1.49945069]
[1748940912069,1.127,665.52,665.31,1.49945069]
[1748940912267,1.127,665.52,665.3,1.49945069]
[1748940912469,1.127,665.52,665.31,1.49945069]
[1748940912870,1.127,665.52,664.82,0.47881999]
[1748940912871,1.127,665.52,665.32,1.49945069]
[1748940913067,1.127,665.52,665.13,2.24939683]
[1748940913068,1.127,665.52,665.31,1.49945069]
[1748940913571,1.127,665.52,665.13,2.24939683]
[1748940913572,1.127,665.52,665.32,1.49945069]
[1748940913765,1.127,665.52,665.33,1.49945069]
[1748940914674,1.127,665.52,665.34,1.49945069]
[1748940915670,1.127,665.52,664.82,0.47881999]
[1748940915671,1.127,665.52,665.35,1.49945069]
[1748940915974,1.127,665.52,665.42,1.49945069]
[1748940916771,1.127,665.52,665.43,1.49945069]
[1748940917567,1.127,665.52,665.42,1.49945069]
[1748940919174,1.127,665.52,665.4,1.49945069]
[1748940919872,1.127,665.52,665.41,1.49945069]
[1748940924970,1.127,665.52,665.4,1.49945069]
[1748940925377,1.127,665.52,665.41,1.49945069]
[1748940925875,1.127,665.52,665.46,1.49945069]
[1748940927580,1.127,665.52,665.47,1.49945069]
[1748940929381,1.127,665.52,665.15,0.47881999]
[1748940929382,1.127,665.52,665.48,1.49945069]
[1748940931785,1.127,665.52,665.51,1.49945069]
[1748940932382,1.127,665.52,665.5,1.49945069]
[1748940934789,1.421,665.53,665.5,1.49945069]
[1748940936890,1.421,665.53,665.4,1.49945069]
[1748940937190,1.421,665.53,665.42,1.49945069]
[1748940937786,2.997,665.53,665.43,1.49945069]
[1748940938185,2.997,665.53,665.42,1.49945069]
[1748940939090,2.997,665.53,665.43,1.49945069]
[1748940939487,2.997,665.53,665.42,1.49945069]
[1748940939788,2.997,665.53,665.29,1.49945069]
[1748940940188,2.997,665.53,664.2,3.7544135]
[1748940940189,2.997,665.53,665.31,1.49945069]
[1748940940593,2.997,665.53,665.32,1.49945069]
[1748940940890,2.997,665.53,665.1,2.24939683]
[1748940940891,2.997,665.53,665.31,1.49945069]
[1748940941286,2.997,665.53,665.32,1.49945069]
[1748940941686,2.997,665.53,665.31,1.49945069]
[1748940942189,2.997,665.53,665.32,1.49945069]
[1748940942385,2.997,665.53,665.31,1.49945069]
[1748940943287,2.997,665.53,665.33,1.49945069]
[1748940947395,1.576,665.53,665.33,1.49945069]
[1748940949701,1.576,665.53,665.47,1.49945069]
[1748940950398,1.576,665.53,665.5,1.49945069]
[1748940951197,1.576,665.53,665.43,2.24939683]
[1748940953700,1.13,665.57,665.43,2.24939683]
[1748940953894,1.13,665.57,665.55,1.49738561]
[1748940954702,1.13,665.57,665.48,1.49738561]
[1748940956205,1.13,665.57,665.49,1.49738561]
[1748940956399,1.13,665.57,665.48,1.49738561]
[1748940956805,1.13,665.57,665.49,1.49738561]
[1748940964310,1.13,665.57,665.5,1.49738561]
[1748940964712,1.13,665.57,665.56,1.49738561]
[1748940964919,1.13,665.57,665.48,1.49738561]
[1748940969316,1.13,665.57,665.49,1.49738561]
[1748940969721,1.13,665.57,665.48,1.49738561]
[1748940970021,1.13,665.57,665.49,1.49738561]
[1748940972216,1.13,665.57,665.48,1.49738561]
[1748940974019,1.13,665.57,665.49,1.49738561]
[1748940974221,1.13,665.57,665.48,1.49738561]
[1748940974820,1.13,665.57,665.51,1.49738561]
[1748940977126,1.13,665.57,665.52,1.49738561]
[1748940978826,1.13,665.57,665.53,1.49738561]
[1748940979227,1.13,665.57,665.51,1.49738561]
[1748940979432,1.372,665.59,665.51,1.49738561]
[1748940981127,1.313,665.74,665.51,1.49738561]
[1748940981333,0.38487149,665.73,665.51,1.49738561]
[1748940981634,0.38487149,665.72,665.52,1.49738561]
[1748940981928,1.313,665.74,665.52,1.49738561]
[1748940983532,1.313,665.74,665.5,1.49738561]
[1748940984127,1.461,665.73,665.52,1.49738561]
[1748940984632,1.84586992,665.73,665.51,1.49738561]
[1748940984928,0.38487223,665.72,665.39,1.49738561]
[1748940985133,0.38467086,665.71,665.38,1.49738561]
[1748940985332,1.461,665.73,665.38,1.49738561]
[1748940985731,0.38467086,665.72,665.38,1.49738561]
[1748940985930,1.461,665.73,665.38,1.49738561]
[1748940987234,0.38467169,665.72,665.38,1.49738561]
[1748940987434,1.461,665.73,665.38,1.49738561]
[1748940988029,0.38467243,665.72,665.39,1.49738561]
[1748940988234,1.461,665.73,665.39,1.49738561]
[1748940988434,0.38467169,665.72,665.39,1.49738561]
[1748940988635,0.38467169,665.71,665.39,1.49738561]
[1748940988939,0.38467169,665.7,665.39,1.49738561]
[1748940989137,1.461,665.73,665.39,1.49738561]
[1748940990433,0.38462027,665.72,665.39,1.49738561]
[1748940990638,1.461,665.73,665.39,1.49738561]
[1748940991132,0.38461964,665.72,665.39,1.49738561]
[1748940991333,1.461,665.73,665.39,1.49738561]
[1748940992437,1.461,665.73,664.45,3.7544135]
[1748940992438,0.3846189,665.72,665.38,1.49738561]
[1748940992738,0.3846189,665.71,665.38,1.49738561]
[1748940992939,0.3846189,665.7,665.38,1.49738561]
[1748940993139,0.38461959,665.69,665.38,1.49738561]
[1748940993339,1.461,665.73,665.39,1.49738561]
[1748940993841,0.38461959,665.72,665.39,1.49738561]
[1748940994043,1.461,665.73,665.39,1.49738561]
[1748940994839,1.461,665.73,665.48,1.49738561]
[1748940995038,0.3846189,665.72,665.48,1.49738561]
[1748940995237,1.461,665.73,665.48,1.49738561]
[1748940996640,0.38462033,665.72,665.48,1.49738561]
[1748940996942,1.461,665.73,665.48,1.49738561]
[1748940997144,0.38461941,665.72,665.48,1.49738561]
[1748940997343,1.461,665.73,665.48,1.49738561]
[1748940997744,0.38461959,665.72,665.48,1.49738561]
[1748940998041,1.461,665.73,665.48,1.49738561]
[1748940998642,0.38461959,665.72,665.47,1.49738561]
[1748940998841,1.461,665.73,665.47,1.49738561]
[1748941000642,0.38462017,665.72,665.47,1.49738561]
[1748941000939,1.461,665.73,665.47,1.49738561]
[1748941002043,2.694,665.73,665.47,1.49738561]
[1748941002344,0.38462033,665.72,665.51,1.49738561]
[1748941002544,2.694,665.73,665.51,1.49738561]
[1748941002738,0.38462033,665.72,665.51,1.49738561]
[1748941003046,2.694,665.73,665.51,1.49738561]
[1748941003235,0.38462033,665.72,665.51,1.49738561]
[1748941003438,2.694,665.73,665.51,1.49738561]
[1748941003636,0.38462033,665.72,665.51,1.49738561]
[1748941003842,0.38461959,665.71,665.51,1.49738561]
[1748941004037,2.694,665.73,665.51,1.49738561]
[1748941004243,2.694,665.73,665.53,1.49738561]
[1748941004639,0.38462107,665.72,665.53,1.49738561]
[1748941004838,2.694,665.73,665.53,1.49738561]
[1748941005043,0.38462099,665.72,665.53,1.49738561]
[1748941005238,2.694,665.73,665.53,1.49738561]
[1748941005442,0.38461959,665.72,665.53,1.49738561]
[1748941005640,0.38461959,665.71,665.53,1.49738561]
[1748941005842,2.694,665.73,665.53,1.49738561]
[1748941006241,1.233,665.73,665.53,1.49738561]
[1748941006446,1.233,665.73,665.51,1.49738561]
[1748941007748,0.3846199,665.72,665.51,1.49738561]
[1748941007947,1.233,665.73,665.51,1.49738561]
[1748941008147,0.38462064,665.72,665.51,1.49738561]
[1748941008350,1.233,665.73,665.51,1.49738561]
[1748941008547,0.38462064,665.72,665.52,1.49738561]
[1748941008848,1.233,665.73,665.52,1.49738561]
[1748941009548,1.226,665.72,665.52,1.49738561]
[1748941009742,0.38461959,665.71,665.52,1.49738561]
[1748941009946,0.3846189,665.7,665.52,1.49738561]
[1748941010143,1.226,665.72,665.52,1.49738561]
[1748941010343,0.38461967,665.71,665.52,1.49738561]
[1748941010546,1.226,665.72,665.52,1.49738561]
[1748941010942,0.38462027,665.71,665.52,1.49738561]
[1748941011145,1.226,665.72,665.52,1.49738561]
[1748941011646,0.38462095,665.71,665.52,1.49738561]
[1748941011841,1.226,665.72,665.52,1.49738561]
[1748941012046,0.38462107,665.71,665.52,1.49738561]
[1748941012248,1.226,665.72,665.52,1.49738561]
[1748941012449,0.38462033,665.71,665.52,1.49738561]
[1748941012745,1.226,665.72,665.52,1.49738561]
[1748941013650,0.38462107,665.71,665.52,1.49738561]
[1748941013851,1.226,665.72,665.52,1.49738561]
[1748941014248,0.38461959,665.71,665.54,1.49738561]
[1748941014651,1.226,665.72,665.54,1.49738561]
[1748941015352,0.38462058,665.71,665.54,1.49738561]
[1748941015547,1.226,665.72,665.55,1.49738561]
[1748941015748,1.226,665.72,665.58,1.49738561]
[1748941015947,0.38461959,665.71,665.58,1.49738561]
[1748941016151,0.38461959,665.7,665.58,1.49738561]
[1748941016352,1.226,665.72,665.58,1.49738561]
[1748941016953,1.226,665.72,665.03,3.7544135]
[1748941016954,0.38462032,665.71,665.59,1.49738561]
[1748941017153,1.226,665.72,665.59,1.49738561]
[1748941017550,0.38461959,665.71,665.59,1.49738561]
[1748941017755,1.226,665.72,665.59,1.49738561]
[1748941018250,0.38462032,665.71,665.59,1.49738561]
[1748941018452,1.226,665.72,665.59,1.49738561]
[1748941019650,0.38462107,665.71,665.59,1.49738561]
[1748941019852,1.226,665.72,665.59,1.49738561]
[1748941020056,0.38462107,665.71,665.59,1.49738561]
[1748941020257,0.38462107,665.7,665.59,1.49738561]
[1748941020462,0.38462107,665.69,665.59,1.49738561]
[1748941020653,0.38462122,665.68,665.59,1.49738561]
[1748941020958,1.226,665.72,665.59,1.49738561]
[1748941021760,0.38462048,665.71,665.59,1.49738561]
[1748941021963,0.38462048,665.7,665.51,1.49738561]
[1748941022156,1.226,665.72,665.51,1.49738561]
[1748941022355,0.38462102,665.71,665.51,1.49738561]
[1748941022559,1.226,665.72,665.5,1.49738561]
[1748941022956,0.38462104,665.71,665.5,1.49738561]
[1748941023162,1.226,665.72,665.5,1.49738561]
[1748941024157,0.38462104,665.71,665.5,1.49738561]
[1748941024361,1.226,665.72,665.49,1.49738561]
[1748941024863,0.38453817,665.71,665.48,1.49738561]
[1748941025059,0.38453824,665.7,665.48,1.49738561]
[1748941025261,1.226,665.72,665.48,1.49738561]
[1748941027162,0.38453681,665.71,665.48,1.49738561]
[1748941027362,0.38453681,665.7,665.48,1.49738561]
[1748941027559,0.38453681,665.69,665.48,1.49738561]
[1748941027764,1.226,665.72,665.48,1.49738561]
[1748941028367,0.3845375,665.71,665.48,1.49738561]
[1748941028667,1.226,665.72,665.48,1.49738561]
[1748941028867,0.3845375,665.71,665.48,1.49738561]
[1748941029067,1.226,665.72,665.48,1.49738561]
[1748941029366,0.3845375,665.71,665.48,1.49738561]
[1748941029567,0.38453824,665.7,665.48,1.49738561]
[1748941029769,1.226,665.72,665.48,1.49738561]
[1748941029967,0.38453824,665.71,665.48,1.49738561]
[1748941030167,1.226,665.72,665.48,1.49738561]
[1748941030367,0.38453824,665.71,665.48,1.49738561]
[1748941030567,1.226,665.72,665.48,1.49738561]
[1748941030764,0.38453824,665.71,665.48,1.49738561]
[1748941030962,1.226,665.72,665.48,1.49738561]
[1748941031163,0.38453824,665.71,665.48,1.49738561]
[1748941031366,1.226,665.72,665.48,1.49738561]
[1748941031863,1.226,665.72,665.51,1.49738561]
[1748941032570,1.226,665.72,665.53,1.49738561]
[1748941034073,1.226,665.72,665.56,1.49738561]
[1748941034268,1.226,665.72,665.32,0.47881999]
[1748941034269,1.226,665.72,665.55,1.49738561]
[1748941034670,1.226,665.72,665.43,2.24939683]
[1748941034671,1.226,665.72,665.56,1.49738561]
[1748941034871,0.38453824,665.71,665.56,1.49738561]
[1748941035072,1.226,665.72,665.56,1.49738561]
[1748941035272,1.226,665.72,665.33,0.47881999]
[1748941035273,0.38453797,665.71,665.48,1.49738561]
[1748941035571,1.226,665.72,665.48,1.49738561]
[1748941035767,0.38453824,665.71,665.48,1.49738561]
[1748941035971,0.38453824,665.71,664.73,3.7544135]
[1748941035972,1.226,665.72,665.49,1.49738561]
[1748941036373,0.38453824,665.71,665.49,1.49738561]
[1748941036576,1.226,665.72,665.49,1.49738561]
[1748941036969,0.3845375,665.71,665.5,1.49738561]
[1748941037171,0.3845375,665.7,665.5,1.49738561]
[1748941037370,1.226,665.72,665.5,1.49738561]
[1748941038576,0.38458964,665.71,665.5,1.49738561]
[1748941038776,1.226,665.72,665.5,1.49738561]
[1748941039178,0.38458817,665.71,665.48,1.49738561]
[1748941039776,0.76917924,665.7,665.48,1.49738561]
[1748941039977,0.38458956,665.69,665.48,1.49738561]
[1748941040170,0.38458964,665.7,665.48,1.49738561]
[1748941041073,0.38458964,665.69,665.48,1.49738561]
[1748941041377,0.38458964,665.68,665.48,1.49738561]
[1748941041576,0.38458964,665.67,665.48,1.49738561]
[1748941041779,0.38458964,665.7,665.48,1.49738561]
[1748941042278,1.107,665.69,665.48,1.49738561]
[1748941042480,0.3845883,665.68,665.48,1.49738561]
[1748941042778,1.107,665.69,665.49,1.49738561]
[1748941042974,1.107,665.69,665.48,1.49738561]
[1748941043381,0.38458977,665.68,665.48,1.49738561]
[1748941043678,1.107,665.69,665.48,1.49738561]
[1748941044779,1.107,665.69,665.49,1.49738561]
[1748941044980,1.107,665.69,665.48,1.49738561]
[1748941045280,0.38467263,665.68,665.53,1.49738561]
[1748941045579,0.38467194,665.67,665.53,1.49738561]
[1748941045778,1.107,665.69,665.53,1.49738561]
[1748941045779,0.38467194,665.66,665.53,1.49738561]
[1748941045981,1.107,665.69,665.53,1.49738561]
[1748941046378,1.107,665.69,665.52,1.49738561]
[1748941046576,1.107,665.69,664.86,3.7544135]
[1748941046577,1.107,665.69,665.51,1.49738561]
[1748941047774,0.38508394,665.68,665.51,1.49738561]
[1748941048072,1.107,665.69,665.51,1.49738561]
[1748941048278,0.77016414,665.68,665.52,1.49738561]
[1748941048577,0.38508209,665.68,665.52,1.49738561]
[1748941048983,0.38508209,665.68,665.51,1.49738561]
[1748941049180,0.38508209,665.68,665.54,1.49738561]
[1748941049675,0.38508209,665.68,665.55,1.49738561]
[1748941050579,0.38508339,665.67,665.52,1.49738561]
[1748941050781,0.38508209,665.68,665.51,1.49738561]
[1748941050977,0.38507989,665.67,665.51,1.49738561]
[1748941051174,0.38508209,665.68,665.51,1.49738561]
[1748941051573,0.38508065,665.67,665.51,1.49738561]
[1748941051777,0.38508209,665.68,665.5,1.49738561]
[1748941052777,0.38508374,665.67,665.5,1.49738561]
[1748941052974,0.38508374,665.67,665.36,2.24939683]
[1748941052975,0.38508209,665.68,665.51,1.49738561]
[1748941053178,0.38508305,665.67,665.51,1.49738561]
[1748941053378,0.38508209,665.68,665.51,1.49738561]
[1748941053781,0.38508209,665.68,665.5,1.49738561]
[1748941053980,0.38508414,665.67,665.5,1.49738561]
[1748941054283,0.38508209,665.68,665.5,1.49738561]
[1748941054473,0.38508448,665.67,665.5,1.49738561]
[1748941054674,0.38508209,665.68,665.5,1.49738561]
[1748941055380,0.38508231,665.67,665.5,1.49738561]
[1748941055575,0.38508209,665.68,665.5,1.49738561]
[1748941055780,0.38508231,665.67,665.5,1.49738561]
[1748941056075,0.38508209,665.68,665.5,1.49738561]
[1748941056277,0.38508305,665.67,665.5,1.49738561]
[1748941056485,0.38508209,665.68,665.51,1.49738561]
[1748941056680,0.38508209,665.68,665.5,1.49738561]
[1748941057177,0.38508209,665.68,664.76,0.26144085]
[1748941057178,0.38503101,665.67,665.49,1.49738561]
[1748941057384,0.38503101,665.66,665.49,1.49738561]
[1748941057579,0.38508209,665.68,665.49,1.49738561]
[1748941057779,0.38508209,665.68,665.5,1.49738561]
[1748941057980,0.38502326,665.67,665.5,1.49738561]
[1748941058183,0.38508209,665.68,665.49,1.49738561]
[1748941058584,0.38502252,665.67,665.49,1.49738561]
[1748941060183,0.38502252,665.67,665.48,1.49738561]
[1748941060585,0.38502252,665.67,665.49,1.49738561]
[1748941062081,0.38502745,665.66,665.48,1.49738561]
[1748941062286,0.38503471,665.65,665.47,1.49738561]
[1748941062481,0.38502252,665.67,665.47,1.49738561]
[1748941063582,0.38502252,665.67,665.48,1.49738561]
[1748941063780,0.38502252,665.67,665.47,1.49738561]
[1748941064185,0.38435749,665.66,665.47,1.49738561]
[1748941064381,0.38436008,665.65,665.47,1.49738561]
[1748941064687,0.38502252,665.67,665.48,1.49738561]
[1748941064688,0.38436608,665.64,665.48,1.49738561]
[1748941064882,0.38502252,665.67,665.48,1.49738561]
[1748941065081,0.38502252,665.67,664.86,3.7544135]
[1748941065082,0.38502252,665.67,665.47,1.49738561]
[1748941065286,1.39237554,665.66,665.48,1.49738561]
[1748941065485,1.008,665.66,665.48,1.49738561]
[1748941065989,1.008,665.66,665.37,1.49738561]
[1748941066191,1.008,665.66,665.3,1.49738561]
[1748941066882,1.008,665.66,664.55,3.7544135]
[1748941066883,1.008,665.66,665.28,1.49738561]
[1748941067189,1.008,665.66,665.27,1.49738561]
[1748941067385,0.38446853,665.65,665.23,1.49738561]
[1748941067587,1.008,665.66,665.23,1.49738561]
[1748941067788,0.38447405,665.65,665.22,1.49738561]
[1748941067985,0.38447405,665.65,664.4,3.7544135]
[1748941067986,0.38447114,665.64,665.23,1.49738561]
[1748941068182,1.044,665.64,665.23,1.49738561]
[1748941068888,0.38446508,665.63,665.23,1.49738561]
[1748941069088,1.044,665.64,665.23,1.49738561]
[1748941069283,0.38446499,665.63,665.22,1.49738561]
[1748941069491,1.044,665.64,665.22,1.49738561]
[1748941071186,0.38446255,665.63,665.21,1.49738561]
[1748941071388,0.38446255,665.62,665.21,1.49738561]
[1748941071590,1.044,665.64,665.22,1.49738561]
[1748941071787,0.38445748,665.63,665.22,1.49738561]
[1748941071990,1.044,665.64,665.22,1.49738561]
[1748941072188,1.044,665.64,664.66,0.47881999]
[1748941072189,0.38445675,665.63,665.23,1.49738561]
[1748941072386,1.044,665.64,665.23,1.49738561]
[1748941072586,0.38445494,665.63,665.23,1.49738561]
[1748941072786,1.044,665.64,665.23,1.49738561]
[1748941072991,1.044,665.64,665.22,1.49738561]
[1748941073192,0.38445748,665.63,665.22,1.49738561]
[1748941073387,0.38445822,665.62,665.22,1.49738561]
[1748941073594,0.38445822,665.61,665.22,1.49738561]
[1748941073792,1.044,665.64,665.22,1.49738561]
[1748941074792,0.38445601,665.63,665.22,1.49738561]
[1748941074993,0.38445601,665.62,665.22,1.49738561]
[1748941075289,1.044,665.64,665.21,1.49738561]
[1748941075492,0.38445732,665.63,665.21,1.49738561]
[1748941075695,1.044,665.64,665.21,1.49738561]
[1748941076089,1.044,665.64,665.24,1.49738561]
[1748941076292,0.38445578,665.63,665.24,1.49738561]
[1748941076490,1.044,665.64,665.24,1.49738561]
[1748941076692,0.38445707,665.63,665.24,1.49738561]
[1748941076889,1.044,665.64,665.24,1.49738561]
[1748941077296,0.38445708,665.63,665.31,1.49738561]
[1748941077489,1.044,665.64,665.32,1.49738561]
[1748941077890,0.38445708,665.63,665.32,1.49738561]
[1748941078088,1.044,665.64,665.32,1.49738561]
[1748941079298,0.38445539,665.63,665.32,1.49738561]
[1748941079500,0.38445539,665.62,665.32,1.49738561]
[1748941079702,1.044,665.64,665.31,1.49738561]
[1748941079897,1.044,665.64,665.2,2.24939683]
[1748941079898,1.044,665.64,665.32,1.49738561]
[1748941080294,0.38445607,665.63,665.32,1.49738561]
[1748941080494,0.38502252,665.67,665.32,1.49738561]
[1748941080698,0.3844584,665.66,665.31,1.49738561]
[1748941080896,0.38445821,665.65,665.31,1.49738561]
[1748941081098,0.3844584,665.64,665.31,1.49738561]
[1748941081294,0.38502252,665.67,665.31,1.49738561]
[1748941081700,0.38445779,665.66,665.31,1.49738561]
[1748941081996,0.38445731,665.65,665.31,1.49738561]
[1748941082301,1.36,665.66,665.32,1.49738561]
[1748941082496,0.38445731,665.65,665.32,1.49738561]
[1748941082702,0.38445731,665.64,665.32,1.49738561]
[1748941082897,1.36,665.66,665.3,1.49738561]
[1748941083103,0.38445968,665.65,665.3,1.49738561]
[1748941083298,1.401,665.65,665.3,1.49738561]
[1748941083903,1.401,665.65,665.19,2.24939683]
[1748941083904,1.401,665.65,665.31,1.49738561]
[1748941084107,0.38445727,665.64,665.31,1.49738561]
[1748941084305,0.38520806,665.63,665.3,1.49738561]
[1748941084504,1.401,665.65,665.3,1.49738561]
[1748941084704,0.38520806,665.64,665.3,1.49738561]
[1748941084905,1.401,665.65,665.3,1.49738561]
[1748941085906,1.401,665.65,665.31,1.49738561]
[1748941087000,0.38520127,665.64,665.31,1.49738561]
[1748941087205,1.401,665.65,665.31,1.49738561]
[1748941087504,0.38520185,665.64,665.31,1.49738561]
[1748941087701,1.401,665.65,665.31,1.49738561]
[1748941088003,0.38525329,665.64,665.31,1.49738561]
[1748941088201,0.38525329,665.63,665.31,1.49738561]
[1748941088400,1.401,665.65,665.31,1.49738561]
[1748941089007,0.38525255,665.64,665.31,1.49738561]
[1748941089308,1.401,665.65,665.27,1.49738561]
[1748941089505,0.38525403,665.64,665.27,1.49738561]
[1748941089701,1.401,665.65,665.27,1.49738561]
[1748941089903,0.38525394,665.64,665.27,1.49738561]
[1748941090101,1.401,665.65,665.27,1.49738561]
[1748941091900,0.3852532,665.64,665.27,1.49738561]
[1748941092105,0.38525247,665.63,665.27,1.49738561]
[1748941092308,0.38525247,665.62,665.27,1.49738561]
[1748941092502,1.401,665.65,665.27,1.49738561]
[1748941092702,0.38525247,665.64,665.29,1.49738561]
[1748941092904,1.401,665.65,665.3,1.49738561]
[1748941095109,1.401,665.65,665.29,1.49738561]
[1748941095708,1.401,665.65,665.3,1.49738561]
[1748941096104,0.38525419,665.64,665.29,1.49738561]
[1748941096308,1.401,665.65,665.29,1.49738561]
[1748941096510,0.38525488,665.64,665.29,1.49738561]
[1748941096711,0.38525468,665.63,665.29,1.49738561]
[1748941096905,1.401,665.65,665.29,1.49738561]
[1748941097109,1.346,665.62,665.29,1.49738561]
[1748941097308,0.38525238,665.61,665.29,1.49738561]
[1748941097505,0.38525312,665.6,665.29,1.49738561]
[1748941097706,1.346,665.62,665.29,1.49738561]
[1748941097909,0.38525303,665.61,665.29,1.49738561]
[1748941098112,1.346,665.62,665.29,1.49738561]
[1748941098509,0.38525303,665.61,665.29,1.49738561]
[1748941098708,1.346,665.62,665.29,1.49738561]
[1748941099108,1.346,665.62,665.31,1.49738561]
[1748941099308,1.346,665.62,665.27,1.49738561]
[1748941100712,0.38525307,665.61,665.27,1.49738561]
[1748941101012,0.38525403,665.6,665.27,1.49738561]
[1748941101215,0.38525403,665.6,665.14,2.24939683]
[1748941101216,0.3852541,665.59,665.26,1.49738561]
[1748941101414,0.38525307,665.58,665.27,1.49738561]
[1748941101616,0.935,665.58,665.27,1.49738561]
[1748941102017,0.38525298,665.57,665.27,1.49738561]
[1748941102210,0.935,665.58,665.27,1.49738561]
[1748941103816,0.38525263,665.57,665.27,1.49738561]
[1748941104017,0.38525263,665.56,665.27,1.49738561]
[1748941104218,0.38525337,665.55,665.27,1.49738561]
[1748941104417,0.38525434,665.54,665.27,1.49738561]
[1748941104719,0.38525434,665.53,665.27,1.49738561]
[1748941104916,0.935,665.58,665.27,1.49738561]
[1748941105518,0.935,665.58,665.28,1.49738561]
[1748941105519,0.38525252,665.57,665.28,1.49738561]
[1748941105718,0.935,665.58,665.28,1.49738561]
[1748941106113,1.141,665.57,665.28,1.49738561]
[1748941106314,2.403,665.57,665.28,1.49738561]
[1748941106514,2.403,665.57,665.26,1.49738561]
[1748941107515,0.38525372,665.56,665.26,1.49738561]
[1748941107718,2.403,665.57,665.26,1.49738561]
[1748941108118,0.38525494,665.56,665.26,1.49738561]
[1748941108314,0.38525494,665.55,665.26,1.49738561]
[1748941108513,2.403,665.57,665.26,1.49738561]
[1748941108719,2.403,665.57,665.25,1.49738561]
[1748941109121,2.403,665.57,665.28,1.49738561]
[1748941110622,2.403,665.57,665.29,1.49738561]
[1748941111422,2.403,665.57,665.28,1.49738561]
[1748941111617,2.403,665.57,665.29,1.49738561]
[1748941114822,2.403,665.57,665.3,1.49738561]
[1748941115017,2.403,665.57,665.29,1.49738561]
[1748941115215,2.403,665.57,665.3,1.49738561]
[1748941115617,2.403,665.57,665.29,1.49738561]
[1748941116424,2.403,665.57,665.32,1.49738561]
[1748941118222,2.403,665.57,665.33,1.49738561]
[1748941118723,2.403,665.57,665.34,1.49738561]
[1748941119125,2.403,665.57,665.35,1.49738561]
[1748941120321,2.403,665.57,665.36,1.49738561]
[1748941121225,2.403,665.57,665.38,1.49738561]
[1748941121726,2.403,665.57,665.37,1.49738561]
[1748941122225,2.403,665.57,665.39,1.49738561]
[1748941123126,2.403,665.57,665.41,1.49738561]
[1748941123923,2.403,665.57,665.4,1.49738561]
[1748941124129,0.38520785,665.56,665.4,1.49738561]
[1748941124329,0.38520785,665.55,665.4,1.49738561]
[1748941124627,2.403,665.57,665.4,1.49738561]
[1748941124828,0.38520785,665.56,665.4,1.49738561]
[1748941125028,2.403,665.57,665.4,1.49738561]
[1748941125228,2.403,665.57,665.42,1.49738561]
[1748941125429,0.38520793,665.56,665.42,1.49738561]
[1748941125628,0.38520711,665.55,665.42,1.49738561]
[1748941125923,0.38417878,665.54,665.42,1.49738561]